[Event "Late-Titled-Tuesday-Blitz-June-25-2024"]
[Site "Chess.com"]
[Date "2024.06.25"]
[Round "6"]
[White "ATM622"]
[Black "JuliaEfremova"]
[Result "1-0"]
[WhiteElo "2534"]
[BlackElo "2298"]
[TimeControl "180+1"]
[EndTime "15:06:04 PDT"]
[Termination "ATM622 won by resignation"]

1. d4 {[%clk 0:03:00.9]} 1... e5 {[%clk 0:02:59]} 2. dxe5 {[%clk 0:03:00.8]}
2... d6 {[%clk 0:02:59]} 3. Nf3 {[%clk 0:03:00.8]} 3... Nc6 {[%clk 0:02:58.5]}
4. e4 {[%clk 0:03:00.6]} 4... Bg4 {[%clk 0:02:55.5]} 5. Be2 {[%clk 0:02:54.9]}
5... dxe5 {[%clk 0:02:51.3]} 6. Nc3 {[%clk 0:02:51.1]} 6... Bxf3 {[%clk
0:02:47.5]} 7. Bxf3 {[%clk 0:02:49.3]} 7... Nd4 {[%clk 0:02:47.1]} 8. O-O {[%clk
0:02:41.9]} 8... Nf6 {[%clk 0:02:43.7]} 9. Bg5 {[%clk 0:02:40.4]} 9... Be7
{[%clk 0:02:40.2]} 10. Qd3 {[%clk 0:02:30.5]} 10... c6 {[%clk 0:02:36.9]} 11.
Rad1 {[%clk 0:02:27]} 11... Qb6 {[%clk 0:02:33.3]} 12. Na4 {[%clk 0:02:14]}
12... Qa5 {[%clk 0:02:21.1]} 13. b3 {[%clk 0:02:11.5]} 13... Rd8 {[%clk
0:02:15]} 14. c3 {[%clk 0:01:53.7]} 14... Ne6 {[%clk 0:02:03.2]} 15. Qe3 {[%clk
0:01:47.6]} 15... b5 {[%clk 0:01:56]} 16. Rxd8+ {[%clk 0:01:43.8]} 16... Bxd8
{[%clk 0:01:46.3]} 17. Nc5 {[%clk 0:01:27.8]} 17... Nxg5 {[%clk 0:01:40.8]} 18.
Qxg5 {[%clk 0:01:26.4]} 18... O-O {[%clk 0:01:34.9]} 19. Qxe5 {[%clk 0:01:14.9]}
19... Qxa2 {[%clk 0:01:25.2]} 20. c4 {[%clk 0:01:03.7]} 20... bxc4 {[%clk
0:01:21.4]} 21. Ra1 {[%clk 0:01:03.1]} 21... Qc2 {[%clk 0:01:16]} 22. bxc4
{[%clk 0:00:43.4]} 22... Qxc4 {[%clk 0:01:03.2]} 23. Rd1 {[%clk 0:00:10.5]}
23... Bb6 {[%clk 0:01:00.4]} 24. Nd3 {[%clk 0:00:10.8]} 24... h6 {[%clk
0:00:58.4]} 25. Qb2 {[%clk 0:00:08.7]} 25... Rb8 {[%clk 0:00:56]} 26. Qe2 {[%clk
0:00:07.4]} 26... a5 {[%clk 0:00:50.8]} 27. Rc1 {[%clk 0:00:07.6]} 27... Qb5
{[%clk 0:00:48.6]} 28. e5 {[%clk 0:00:06.1]} 28... Nd5 {[%clk 0:00:47.5]} 29. e6
{[%clk 0:00:05.2]} 29... fxe6 {[%clk 0:00:40.6]} 30. Qxe6+ {[%clk 0:00:05.1]}
30... Kh8 {[%clk 0:00:39.5]} 31. Qxc6 {[%clk 0:00:02.8]} 31... Qxc6 {[%clk
0:00:23.9]} 32. Rxc6 {[%clk 0:00:03]} 32... Nb4 {[%clk 0:00:19.2]} 33. Nxb4
{[%clk 0:00:03.4]} 33... axb4 {[%clk 0:00:19.3]} 34. Bd5 {[%clk 0:00:03.3]}
34... Bd4 {[%clk 0:00:14.5]} 35. Bb3 {[%clk 0:00:02.4]} 35... Bc3 {[%clk
0:00:14.3]} 36. h3 {[%clk 0:00:02.5]} 36... Rd8 {[%clk 0:00:14.2]} 37. Kh2
{[%clk 0:00:02.3]} 37... Be5+ {[%clk 0:00:11.3]} 38. g3 {[%clk 0:00:02.5]} 38...
Kh7 {[%clk 0:00:10.3]} 39. Kg2 {[%clk 0:00:02.7]} 39... g6 {[%clk 0:00:09]} 40.
h4 {[%clk 0:00:02.7]} 40... Kg7 {[%clk 0:00:09.3]} 41. h5 {[%clk 0:00:02.9]}
41... gxh5 {[%clk 0:00:09.2]} 42. Re6 {[%clk 0:00:03.1]} 42... Bc3 {[%clk
0:00:08.3]} 43. Rc6 {[%clk 0:00:03]} 43... Rd2 {[%clk 0:00:06.7]} 44. Rc7+
{[%clk 0:00:03.2]} 44... Kf6 {[%clk 0:00:06.6]} 45. Rc6+ {[%clk 0:00:03.5]}
45... Ke5 {[%clk 0:00:06.4]} 46. Rxh6 {[%clk 0:00:02.6]} 46... Bd4 {[%clk
0:00:06.5]} 47. Rxh5+ {[%clk 0:00:02.9]} 47... Ke4 {[%clk 0:00:07]} 48. Bd5+
{[%clk 0:00:02.4]} 48... Kd3 {[%clk 0:00:07.1]} 49. Rf5 {[%clk 0:00:01.8]} 49...
Kc3 {[%clk 0:00:06.7]} 50. Bf7 {[%clk 0:00:01.7]} 50... b3 {[%clk 0:00:05.8]}
51. Bxb3 {[%clk 0:00:02.3]} 51... Kxb3 {[%clk 0:00:06.7]} 52. g4 {[%clk
0:00:02.4]} 52... Kc3 {[%clk 0:00:07]} 53. Kg3 {[%clk 0:00:02.6]} 53... Bxf2+
{[%clk 0:00:05.6]} 54. Rxf2 {[%clk 0:00:02.7]} 54... Rxf2 {[%clk 0:00:06.5]} 55.
Kxf2 {[%clk 0:00:03.4]} 55... Kd4 {[%clk 0:00:07.4]} 56. Kg3 {[%clk 0:00:03.9]}
56... Ke5 {[%clk 0:00:08.3]} 57. Kh4 {[%clk 0:00:04.4]} 57... Kf6 {[%clk
0:00:09.1]} 58. Kh5 {[%clk 0:00:04.9]} 58... Kg7 {[%clk 0:00:09.9]} 59. Kg5
{[%clk 0:00:05.3]} 1-0

[Event "Late-Titled-Tuesday-Blitz-June-25-2024"]
[Site "Chess.com"]
[Date "2024.06.25"]
[Round "6"]
[White "MaxLeto"]
[Black "GoValya"]
[Result "1-0"]
[WhiteElo "2438"]
[BlackElo "2216"]
[TimeControl "180+1"]
[EndTime "15:06:07 PDT"]
[Termination "MaxLeto won on time"]

1. g4 {[%clk 0:02:51.9]} 1... d5 {[%clk 0:02:59]} 2. Bg2 {[%clk 0:02:51.3]} 2...
c6 {[%clk 0:02:59]} 3. g5 {[%clk 0:02:51.1]} 3... g6 {[%clk 0:02:57.8]} 4. d4
{[%clk 0:02:51.5]} 4... Bg7 {[%clk 0:02:57.8]} 5. h4 {[%clk 0:02:52.1]} 5... h5
{[%clk 0:02:56.7]} 6. c3 {[%clk 0:02:46.5]} 6... e5 {[%clk 0:02:51.4]} 7. dxe5
{[%clk 0:02:46.3]} 7... Bxe5 {[%clk 0:02:51.1]} 8. Nf3 {[%clk 0:02:46.4]} 8...
Bg7 {[%clk 0:02:51]} 9. Be3 {[%clk 0:02:43.5]} 9... Ne7 {[%clk 0:02:49]} 10. Bd4
{[%clk 0:02:44]} 10... Bxd4 {[%clk 0:02:48.6]} 11. Qxd4 {[%clk 0:02:41.4]} 11...
O-O {[%clk 0:02:42.8]} 12. Na3 {[%clk 0:02:18]} 12... Nd7 {[%clk 0:02:36.5]} 13.
O-O-O {[%clk 0:02:14]} 13... b5 {[%clk 0:02:32.6]} 14. e4 {[%clk 0:02:09.3]}
14... c5 {[%clk 0:02:24.9]} 15. Qe3 {[%clk 0:01:40.4]} 15... b4 {[%clk
0:02:22.6]} 16. cxb4 {[%clk 0:01:35.3]} 16... cxb4 {[%clk 0:02:22.8]} 17. Nc2
{[%clk 0:01:33.1]} 17... Qa5 {[%clk 0:02:11.9]} 18. Kb1 {[%clk 0:01:29.6]} 18...
Bb7 {[%clk 0:01:53.5]} 19. Nfd4 {[%clk 0:01:13.8]} 19... Nc5 {[%clk 0:01:46.6]}
20. e5 {[%clk 0:01:02.9]} 20... b3 {[%clk 0:01:22.7]} 21. axb3 {[%clk
0:00:56.3]} 21... Ne4 {[%clk 0:01:00.9]} 22. f4 {[%clk 0:00:42.4]} 22... Rfc8
{[%clk 0:00:55.2]} 23. f5 {[%clk 0:00:38.2]} 23... Nxf5 {[%clk 0:00:50.7]} 24.
Nxf5 {[%clk 0:00:38]} 24... gxf5 {[%clk 0:00:51.2]} 25. Nd4 {[%clk 0:00:36.4]}
25... Qc5 {[%clk 0:00:25.4]} 26. Bh3 {[%clk 0:00:30.8]} 26... a5 {[%clk
0:00:21.2]} 27. Bxf5 {[%clk 0:00:31.4]} 27... a4 {[%clk 0:00:21.1]} 28. Rc1
{[%clk 0:00:26.3]} 28... Qa5 {[%clk 0:00:19.2]} 29. b4 {[%clk 0:00:12]} 29...
Qxb4 {[%clk 0:00:17.5]} 30. Bxc8 {[%clk 0:00:12.6]} 30... Nd2+ {[%clk
0:00:13.3]} 31. Kc2 {[%clk 0:00:02.3]} 31... Nc4 {[%clk 0:00:12.4]} 32. Qc3
{[%clk 0:00:02]} 32... Qxc3+ {[%clk 0:00:10.9]} 33. bxc3 {[%clk 0:00:01.6]}
33... Bxc8 {[%clk 0:00:11.2]} 34. Ra1 {[%clk 0:00:01.4]} 34... a3 {[%clk
0:00:11.6]} 35. Kb3 {[%clk 0:00:01.5]} 35... Bd7 {[%clk 0:00:11.7]} 36. Kc2
{[%clk 0:00:01.9]} 36... Ba4+ {[%clk 0:00:11.4]} 37. Kd3 {[%clk 0:00:01.9]}
37... Bd7 {[%clk 0:00:11.5]} 38. Rhf1 {[%clk 0:00:01.7]} 38... a2 {[%clk
0:00:09.5]} 39. Rf2 {[%clk 0:00:01.9]} 39... Nxe5+ {[%clk 0:00:05.3]} 40. Ke3
{[%clk 0:00:01.5]} 40... Ng4+ {[%clk 0:00:05.5]} 41. Kf3 {[%clk 0:00:02]} 41...
Nxf2 {[%clk 0:00:05.8]} 42. Kxf2 {[%clk 0:00:02.9]} 42... Ra3 {[%clk 0:00:05.2]}
43. Ne2 {[%clk 0:00:02.1]} 43... Bb5 {[%clk 0:00:03.9]} 44. Nf4 {[%clk
0:00:02.2]} 44... Bc4 {[%clk 0:00:04.1]} 45. Nxh5 {[%clk 0:00:01.8]} 45... Rxc3
{[%clk 0:00:04.3]} 46. Nf6+ {[%clk 0:00:02.2]} 46... Kf8 {[%clk 0:00:03.8]} 47.
Nd7+ {[%clk 0:00:01.7]} 47... Ke7 {[%clk 0:00:03.6]} 48. Ne5 {[%clk 0:00:02.6]}
48... Rc2+ {[%clk 0:00:04]} 49. Ke3 {[%clk 0:00:02.7]} 49... Kd6 {[%clk
0:00:02.8]} 50. Nxc4+ {[%clk 0:00:01.5]} 50... dxc4 {[%clk 0:00:03.2]} 51. h5
{[%clk 0:00:01.8]} 51... Rh2 {[%clk 0:00:02.7]} 52. h6 {[%clk 0:00:02]} 52...
Rg2 {[%clk 0:00:02.2]} 53. Kd4 {[%clk 0:00:02]} 53... Rxg5 {[%clk 0:00:01.3]}
54. Rxa2 {[%clk 0:00:01.7]} 54... Rh5 {[%clk 0:00:01.1]} 55. Kxc4 {[%clk
0:00:01.9]} 55... Ke7 {[%clk 0:00:01]} 56. Ra6 {[%clk 0:00:02.3]} 56... f6
{[%clk 0:00:01.3]} 57. Kd4 {[%clk 0:00:01.6]} 57... Rxh6 {[%clk 0:00:01.2]} 58.
Ke4 {[%clk 0:00:02]} 1-0

[Event "Late-Titled-Tuesday-Blitz-June-25-2024"]
[Site "Chess.com"]
[Date "2024.06.25"]
[Round "6"]
[White "Alexander_Khlebovich"]
[Black "Pitomina"]
[Result "0-1"]
[WhiteElo "2814"]
[BlackElo "2566"]
[TimeControl "180+1"]
[EndTime "15:06:15 PDT"]
[Termination "Pitomina won by checkmate"]

1. d4 {[%clk 0:03:00.9]} 1... d5 {[%clk 0:02:59.3]} 2. c4 {[%clk 0:03:00.8]}
2... Bf5 {[%clk 0:02:58.3]} 3. cxd5 {[%clk 0:02:58.9]} 3... Bxb1 {[%clk
0:02:57.6]} 4. Qa4+ {[%clk 0:02:58.8]} 4... c6 {[%clk 0:02:57.5]} 5. Rxb1 {[%clk
0:02:51.4]} 5... Qxd5 {[%clk 0:02:56.5]} 6. Nf3 {[%clk 0:02:49.6]} 6... Nf6
{[%clk 0:02:53.7]} 7. e3 {[%clk 0:02:39.3]} 7... Nbd7 {[%clk 0:02:53.3]} 8. Qc4
{[%clk 0:02:31.8]} 8... e6 {[%clk 0:02:48]} 9. Bd3 {[%clk 0:02:29]} 9... Nb6
{[%clk 0:02:44.2]} 10. Qxd5 {[%clk 0:02:26.1]} 10... exd5 {[%clk 0:02:31.3]} 11.
Bd2 {[%clk 0:02:22.6]} 11... a5 {[%clk 0:02:26.3]} 12. Ne5 {[%clk 0:02:10.6]}
12... Bb4 {[%clk 0:02:21.6]} 13. f3 {[%clk 0:02:01.7]} 13... Ke7 {[%clk
0:02:13.1]} 14. Rc1 {[%clk 0:01:58.2]} 14... Ne8 {[%clk 0:02:10]} 15. Ke2 {[%clk
0:01:51.5]} 15... f6 {[%clk 0:02:05.8]} 16. Ng4 {[%clk 0:01:45.8]} 16... Bxd2
{[%clk 0:02:05.5]} 17. Kxd2 {[%clk 0:01:45.2]} 17... Nd6 {[%clk 0:02:06.2]} 18.
e4 {[%clk 0:01:40.7]} 18... Nbc4+ {[%clk 0:01:47.6]} 19. Bxc4 {[%clk 0:01:29.2]}
19... Nxc4+ {[%clk 0:01:45.4]} 20. Kc3 {[%clk 0:01:24.2]} 20... h5 {[%clk
0:01:45.3]} 21. Nf2 {[%clk 0:01:19.3]} 21... Kd6 {[%clk 0:01:44.6]} 22. b3
{[%clk 0:01:14.7]} 22... Nb6 {[%clk 0:01:43.8]} 23. Nd3 {[%clk 0:01:13.8]} 23...
Nd7 {[%clk 0:01:31.6]} 24. Rce1 {[%clk 0:01:09.3]} 24... a4 {[%clk 0:01:30.9]}
25. e5+ {[%clk 0:01:06]} 25... fxe5 {[%clk 0:01:30.7]} 26. dxe5+ {[%clk
0:01:06.9]} 26... Ke7 {[%clk 0:01:29.7]} 27. e6 {[%clk 0:00:47.5]} 27... Nf8
{[%clk 0:01:28.5]} 28. Nc5 {[%clk 0:00:46.8]} 28... axb3 {[%clk 0:01:23.5]} 29.
axb3 {[%clk 0:00:43.1]} 29... Rh6 {[%clk 0:01:19.5]} 30. Nxb7 {[%clk 0:00:35.9]}
30... Rxe6 {[%clk 0:01:17.7]} 31. Nc5 {[%clk 0:00:31.4]} 31... Rxe1 {[%clk
0:01:17]} 32. Rxe1+ {[%clk 0:00:32.3]} 32... Kd6 {[%clk 0:01:17.4]} 33. b4
{[%clk 0:00:30.1]} 33... Ra2 {[%clk 0:01:10.5]} 34. Re8 {[%clk 0:00:29.7]} 34...
Nh7 {[%clk 0:01:04]} 35. Re6+ {[%clk 0:00:25.9]} 35... Kc7 {[%clk 0:01:03.8]}
36. Re7+ {[%clk 0:00:26.2]} 36... Kd6 {[%clk 0:01:02.8]} 37. Rd7+ {[%clk
0:00:22]} 37... Ke5 {[%clk 0:01:02.6]} 38. Rxg7 {[%clk 0:00:20.9]} 38... Nf6
{[%clk 0:01:00.6]} 39. Re7+ {[%clk 0:00:21]} 39... Kf5 {[%clk 0:00:59.5]} 40.
Nd3 {[%clk 0:00:18.2]} 40... h4 {[%clk 0:00:37.9]} 41. Re5+ {[%clk 0:00:18.2]}
41... Kg6 {[%clk 0:00:38.3]} 42. Nf4+ {[%clk 0:00:18.7]} 42... Kf7 {[%clk
0:00:38.3]} 43. Rf5 {[%clk 0:00:18]} 43... Ke7 {[%clk 0:00:37.4]} 44. Ng6+
{[%clk 0:00:18.2]} 44... Ke6 {[%clk 0:00:37.5]} 45. Nxh4 {[%clk 0:00:18.8]}
45... Ra3+ {[%clk 0:00:29.6]} 46. Kb2 {[%clk 0:00:18.5]} 46... Rd3 {[%clk
0:00:28.1]} 47. Rg5 {[%clk 0:00:18]} 47... d4 {[%clk 0:00:25.6]} 48. Nf5 {[%clk
0:00:16.6]} 48... Nd5 {[%clk 0:00:25.3]} 49. g4 {[%clk 0:00:13.7]} 49... Nxb4
{[%clk 0:00:24]} 50. h4 {[%clk 0:00:13.7]} 50... c5 {[%clk 0:00:22]} 51. h5
{[%clk 0:00:12.7]} 51... c4 {[%clk 0:00:22.4]} 52. Nxd4+ {[%clk 0:00:12.8]}
52... Rxd4 {[%clk 0:00:22]} 53. Kc3 {[%clk 0:00:13.3]} 53... Nc6 {[%clk
0:00:19.7]} 54. Rc5 {[%clk 0:00:10.3]} 54... Rd6 {[%clk 0:00:12.5]} 55. h6
{[%clk 0:00:07.9]} 55... Ne5 {[%clk 0:00:11.4]} 56. g5 {[%clk 0:00:07.8]} 56...
Rd3+ {[%clk 0:00:09.4]} 57. Kc2 {[%clk 0:00:07.2]} 57... Rxf3 {[%clk 0:00:09.9]}
58. Rc8 {[%clk 0:00:06.5]} 58... Rh3 {[%clk 0:00:09.9]} 59. Re8+ {[%clk
0:00:06.1]} 59... Kf5 {[%clk 0:00:10.3]} 60. Rg8 {[%clk 0:00:06.4]} 60... Ng6
{[%clk 0:00:09.9]} 61. Rc8 {[%clk 0:00:06.4]} 61... Rh4 {[%clk 0:00:09.9]} 62.
Rc5+ {[%clk 0:00:05.7]} 62... Ne5 {[%clk 0:00:07.6]} 63. Kc3 {[%clk 0:00:04.1]}
63... Rh3+ {[%clk 0:00:08]} 64. Kd4 {[%clk 0:00:03.4]} 64... Rd3# {[%clk
0:00:08.1]} 0-1

[Event "Late-Titled-Tuesday-Blitz-June-25-2024"]
[Site "Chess.com"]
[Date "2024.06.25"]
[Round "6"]
[White "CrimeFightingSpider07"]
[Black "XDPS"]
[Result "0-1"]
[WhiteElo "2557"]
[BlackElo "2832"]
[TimeControl "180+1"]
[EndTime "15:06:16 PDT"]
[Termination "XDPS won by resignation"]

1. Nf3 {[%clk 0:03:00.9]} 1... d5 {[%clk 0:03:00.2]} 2. d4 {[%clk 0:03:00.9]}
2... Nf6 {[%clk 0:02:59.1]} 3. c4 {[%clk 0:02:54.2]} 3... c6 {[%clk 0:02:53.6]}
4. e3 {[%clk 0:02:52.9]} 4... e6 {[%clk 0:02:53.2]} 5. Bd3 {[%clk 0:02:44.7]}
5... Nbd7 {[%clk 0:02:49.9]} 6. O-O {[%clk 0:02:41.4]} 6... Be7 {[%clk
0:02:49.5]} 7. Nbd2 {[%clk 0:02:40.5]} 7... O-O {[%clk 0:02:49.2]} 8. b3 {[%clk
0:02:40.4]} 8... b6 {[%clk 0:02:49.3]} 9. Bb2 {[%clk 0:02:40.7]} 9... Bb7 {[%clk
0:02:50]} 10. e4 {[%clk 0:02:39.9]} 10... dxe4 {[%clk 0:02:50.3]} 11. Nxe4
{[%clk 0:02:40.6]} 11... c5 {[%clk 0:02:51]} 12. Re1 {[%clk 0:02:37.4]} 12...
Qc7 {[%clk 0:02:50.1]} 13. Nxf6+ {[%clk 0:02:30.5]} 13... Bxf6 {[%clk 0:02:50]}
14. Be4 {[%clk 0:02:26.3]} 14... Rad8 {[%clk 0:02:46]} 15. Bxb7 {[%clk
0:02:24.6]} 15... Qxb7 {[%clk 0:02:46.3]} 16. Qe2 {[%clk 0:02:25]} 16... cxd4
{[%clk 0:02:44.3]} 17. Bxd4 {[%clk 0:02:24.6]} 17... Bxd4 {[%clk 0:02:43.1]} 18.
Nxd4 {[%clk 0:02:25.3]} 18... Nc5 {[%clk 0:02:36.3]} 19. Rad1 {[%clk 0:02:25.5]}
19... Rd7 {[%clk 0:02:36.5]} 20. Nf3 {[%clk 0:02:12]} 20... Rfd8 {[%clk
0:02:36.6]} 21. Ne5 {[%clk 0:02:08.9]} 21... Rd4 {[%clk 0:01:48]} 22. Rxd4
{[%clk 0:02:01.2]} 22... Rxd4 {[%clk 0:01:48.9]} 23. Rd1 {[%clk 0:01:57.7]}
23... Qe4 {[%clk 0:01:40.5]} 24. Rxd4 {[%clk 0:01:44]} 24... Qxd4 {[%clk
0:01:41.4]} 25. h3 {[%clk 0:01:35]} 25... a5 {[%clk 0:01:27.6]} 26. Nc6 {[%clk
0:01:06.3]} 26... Qd6 {[%clk 0:01:21.1]} 27. Qe5 {[%clk 0:01:01.1]} 27... Qxe5
{[%clk 0:01:17.1]} 28. Nxe5 {[%clk 0:01:00.5]} 28... f6 {[%clk 0:01:17.7]} 29.
Nf3 {[%clk 0:00:52.2]} 29... Nd3 {[%clk 0:01:12.6]} 30. Nd2 {[%clk 0:00:47.3]}
30... Kf7 {[%clk 0:01:09.3]} 31. Kf1 {[%clk 0:00:44.3]} 31... Ke7 {[%clk
0:01:07.9]} 32. a3 {[%clk 0:00:42.7]} 32... Kd6 {[%clk 0:01:05.2]} 33. Ke2
{[%clk 0:00:39.7]} 33... Nf4+ {[%clk 0:01:05.6]} 34. Kf3 {[%clk 0:00:38.5]}
34... e5 {[%clk 0:00:56.8]} 35. h4 {[%clk 0:00:34.5]} 35... f5 {[%clk
0:00:52.9]} 36. g3 {[%clk 0:00:34.6]} 36... Ne6 {[%clk 0:00:51.8]} 37. Ke3
{[%clk 0:00:30.6]} 37... Nd4 {[%clk 0:00:41.8]} 38. Kd3 {[%clk 0:00:30.9]} 38...
Kc5 {[%clk 0:00:40.3]} 39. Kc3 {[%clk 0:00:26.2]} 39... Nc6 {[%clk 0:00:28.7]}
40. b4+ {[%clk 0:00:19.5]} 40... Kd6 {[%clk 0:00:28.9]} 41. Nb3 {[%clk
0:00:18.4]} 41... axb4+ {[%clk 0:00:24.1]} 42. axb4 {[%clk 0:00:18.3]} 42... g6
{[%clk 0:00:24.5]} 43. c5+ {[%clk 0:00:18.7]} 43... bxc5 {[%clk 0:00:24.5]} 44.
Nxc5 {[%clk 0:00:19.4]} 44... Kd5 {[%clk 0:00:24.1]} 45. Nd3 {[%clk 0:00:19.4]}
45... Nd4 {[%clk 0:00:22.8]} 46. Kd2 {[%clk 0:00:16.4]} 46... e4 {[%clk
0:00:19.2]} 47. Nf4+ {[%clk 0:00:15.7]} 47... Kc4 {[%clk 0:00:19.9]} 48. h5
{[%clk 0:00:15.3]} 48... g5 {[%clk 0:00:19.7]} 49. Nh3 {[%clk 0:00:15.3]} 49...
h6 {[%clk 0:00:19.6]} 50. Ke3 {[%clk 0:00:14.1]} 50... Nc2+ {[%clk 0:00:19.9]}
51. Ke2 {[%clk 0:00:13.8]} 51... Nxb4 {[%clk 0:00:20.8]} 52. Ng1 {[%clk
0:00:12.7]} 52... Kd4 {[%clk 0:00:19.8]} 53. f3 {[%clk 0:00:12.5]} 53... Nd5
{[%clk 0:00:19.4]} 54. fxe4 {[%clk 0:00:12.5]} 54... fxe4 {[%clk 0:00:20.3]} 55.
Nh3 {[%clk 0:00:12.8]} 55... Nc3+ {[%clk 0:00:19.3]} 56. Ke1 {[%clk 0:00:12.7]}
56... Nd5 {[%clk 0:00:18.7]} 57. Nf2 {[%clk 0:00:12.9]} 57... Nf6 {[%clk
0:00:18.1]} 58. Kd1 {[%clk 0:00:06]} 58... Ke3 {[%clk 0:00:17.5]} 59. Ke1 {[%clk
0:00:04.5]} 59... Kf3 {[%clk 0:00:17.9]} 60. Kf1 {[%clk 0:00:02.3]} 60... Kxg3
{[%clk 0:00:17.5]} 61. Ke2 {[%clk 0:00:03.1]} 61... Kf4 {[%clk 0:00:16.2]} 62.
Nh3+ {[%clk 0:00:03.8]} 62... Kf5 {[%clk 0:00:16.6]} 63. Nf2 {[%clk 0:00:04.5]}
63... Nxh5 {[%clk 0:00:16.8]} 64. Ke3 {[%clk 0:00:05.2]} 64... Nf6 {[%clk
0:00:16.6]} 65. Nh3 {[%clk 0:00:04.8]} 65... h5 {[%clk 0:00:16.4]} 66. Nf2
{[%clk 0:00:04.3]} 66... Ng4+ {[%clk 0:00:16.4]} 0-1

[Event "Late-Titled-Tuesday-Blitz-June-25-2024"]
[Site "Chess.com"]
[Date "2024.06.25"]
[Round "6"]
[White "Roedor"]
[Black "pooh2012"]
[Result "0-1"]
[WhiteElo "2398"]
[BlackElo "2593"]
[TimeControl "180+1"]
[EndTime "15:06:17 PDT"]
[Termination "pooh2012 won by checkmate"]

1. d4 {[%clk 0:03:00.9]} 1... Nf6 {[%clk 0:02:59.2]} 2. c4 {[%clk 0:03:00.1]}
2... e6 {[%clk 0:02:58]} 3. g3 {[%clk 0:03:00.1]} 3... d5 {[%clk 0:02:57.4]} 4.
Bg2 {[%clk 0:03:00.3]} 4... dxc4 {[%clk 0:02:57.4]} 5. Nf3 {[%clk 0:03:00]} 5...
Bb4+ {[%clk 0:02:57.8]} 6. Nbd2 {[%clk 0:02:57]} 6... O-O {[%clk 0:02:55.6]} 7.
O-O {[%clk 0:02:55.9]} 7... c5 {[%clk 0:02:50.6]} 8. dxc5 {[%clk 0:02:55]} 8...
Bxc5 {[%clk 0:02:48.5]} 9. Nxc4 {[%clk 0:02:54.7]} 9... Nc6 {[%clk 0:02:38.5]}
10. Bf4 {[%clk 0:02:53.6]} 10... Nd5 {[%clk 0:02:35.2]} 11. Nfe5 {[%clk
0:02:41.3]} 11... Nxf4 {[%clk 0:02:23.1]} 12. gxf4 {[%clk 0:02:42.2]} 12... Nxe5
{[%clk 0:02:12]} 13. Nxe5 {[%clk 0:02:38.6]} 13... Bd4 {[%clk 0:01:56.8]} 14.
Qb3 {[%clk 0:02:20.9]} 14... Qb6 {[%clk 0:01:41.7]} 15. Nd3 {[%clk 0:02:05.5]}
15... Qxb3 {[%clk 0:01:34.3]} 16. axb3 {[%clk 0:02:06.4]} 16... Rb8 {[%clk
0:01:30]} 17. e3 {[%clk 0:02:06.4]} 17... Bb6 {[%clk 0:01:29.3]} 18. Rfc1 {[%clk
0:02:05.4]} 18... Rd8 {[%clk 0:01:14.9]} 19. Nc5 {[%clk 0:02:04.5]} 19... Kf8
{[%clk 0:01:09.7]} 20. b4 {[%clk 0:01:59]} 20... Ke7 {[%clk 0:01:06.7]} 21. Rd1
{[%clk 0:01:55.8]} 21... Rxd1+ {[%clk 0:00:58.2]} 22. Rxd1 {[%clk 0:01:56.7]}
22... a5 {[%clk 0:00:57.9]} 23. Na4 {[%clk 0:01:55.6]} 23... Bc7 {[%clk
0:00:53.8]} 24. Rc1 {[%clk 0:01:52.1]} 24... Kd8 {[%clk 0:00:47.7]} 25. b5
{[%clk 0:01:35.7]} 25... b6 {[%clk 0:00:38.7]} 26. Bc6 {[%clk 0:01:32.6]} 26...
Bd6 {[%clk 0:00:33.1]} 27. Nc3 {[%clk 0:01:17.8]} 27... Bb4 {[%clk 0:00:28.3]}
28. Ne4 {[%clk 0:01:16.2]} 28... Ke7 {[%clk 0:00:26.7]} 29. Kg2 {[%clk
0:01:12.1]} 29... h6 {[%clk 0:00:25.6]} 30. Kf3 {[%clk 0:01:10.6]} 30... Bd7
{[%clk 0:00:21.7]} 31. Bxd7 {[%clk 0:01:05.2]} 31... Kxd7 {[%clk 0:00:22.6]} 32.
Rc6 {[%clk 0:01:03.7]} 32... f5 {[%clk 0:00:17.8]} 33. Ng3 {[%clk 0:01:02.6]}
33... g6 {[%clk 0:00:16.1]} 34. Ne2 {[%clk 0:01:01.7]} 34... Bc5 {[%clk
0:00:15.8]} 35. Nc3 {[%clk 0:00:59]} 35... Rc8 {[%clk 0:00:13.5]} 36. Rxc8
{[%clk 0:00:58.7]} 36... Kxc8 {[%clk 0:00:14.4]} 37. Ke2 {[%clk 0:00:52.5]}
37... Kc7 {[%clk 0:00:11.8]} 38. Kd3 {[%clk 0:00:52.7]} 38... Kd6 {[%clk
0:00:08.2]} 39. f3 {[%clk 0:00:53.1]} 39... g5 {[%clk 0:00:07.1]} 40. fxg5
{[%clk 0:00:51.5]} 40... hxg5 {[%clk 0:00:08]} 41. h3 {[%clk 0:00:49.5]} 41...
Ke5 {[%clk 0:00:06.1]} 42. Na4 {[%clk 0:00:45.7]} 42... Kd5 {[%clk 0:00:06.2]}
43. e4+ {[%clk 0:00:45.7]} 43... fxe4+ {[%clk 0:00:05.9]} 44. fxe4+ {[%clk
0:00:46.6]} 44... Kd6 {[%clk 0:00:06]} 45. b3 {[%clk 0:00:39.1]} 45... Bg1
{[%clk 0:00:05.9]} 46. Nb2 {[%clk 0:00:36.6]} 46... Kc5 {[%clk 0:00:05.3]} 47.
Nc4 {[%clk 0:00:32.8]} 47... Kxb5 {[%clk 0:00:05.4]} 48. Ne5 {[%clk 0:00:33.5]}
48... Kb4 {[%clk 0:00:03.6]} 49. Nf3 {[%clk 0:00:33.3]} 49... Bc5 {[%clk
0:00:03.2]} 50. Nxg5 {[%clk 0:00:31.3]} 50... Kxb3 {[%clk 0:00:03.3]} 51. h4
{[%clk 0:00:28.9]} 51... a4 {[%clk 0:00:03.4]} 52. Nf3 {[%clk 0:00:07.4]} 52...
a3 {[%clk 0:00:03.6]} 53. Nd2+ {[%clk 0:00:07.6]} 53... Kb2 {[%clk 0:00:03.9]}
54. Nc4+ {[%clk 0:00:07.5]} 54... Kb1 {[%clk 0:00:02.6]} 55. Nxa3+ {[%clk
0:00:06.6]} 55... Bxa3 {[%clk 0:00:03.5]} 56. Kc4 {[%clk 0:00:05.9]} 56... Bb2
{[%clk 0:00:03.6]} 57. Kb5 {[%clk 0:00:06.1]} 57... Kc2 {[%clk 0:00:03.5]} 58.
Kxb6 {[%clk 0:00:06.1]} 58... Kd3 {[%clk 0:00:04.1]} 59. Kc5 {[%clk 0:00:03.9]}
59... Kxe4 {[%clk 0:00:04.1]} 60. h5 {[%clk 0:00:04.8]} 60... Kf5 {[%clk
0:00:04.5]} 61. Kd6 {[%clk 0:00:05.3]} 61... Bh8 {[%clk 0:00:05.1]} 62. Ke7
{[%clk 0:00:05.4]} 62... e5 {[%clk 0:00:05.6]} 63. Kf7 {[%clk 0:00:05.7]} 63...
e4 {[%clk 0:00:06.2]} 64. Kg8 {[%clk 0:00:06.6]} 64... Bf6 {[%clk 0:00:06.3]}
65. h6 {[%clk 0:00:07.5]} 65... e3 {[%clk 0:00:06.9]} 66. Kf7 {[%clk 0:00:08.2]}
66... e2 {[%clk 0:00:07.4]} 67. h7 {[%clk 0:00:09.1]} 67... e1=Q {[%clk
0:00:07.7]} 68. h8=Q {[%clk 0:00:08.4]} 68... Qe6+ {[%clk 0:00:07.4]} 69. Kf8
{[%clk 0:00:08.5]} 69... Qe7+ {[%clk 0:00:07.7]} 70. Kg8 {[%clk 0:00:08.7]}
70... Qe8+ {[%clk 0:00:08.1]} 71. Kh7 {[%clk 0:00:08.9]} 71... Qxh8# {[%clk
0:00:08.3]} 0-1